{"text_format":"1","workbook":"xlsx","n_sheets":7,"sheets":["様式第８号（第１面）","様式第８号（第２面）","様式第８号（第３面）","様式第８号（第４面）","様式第８号（第１・２面）入力案内","職種コード","国コード"],"not_rendered":{"charts":0,"images":0,"macros":0,"external_links":0,"defined_names":5,"comments":0,"pivot_tables":0},"unopened":[],"bounds":{"document_bytes":16777216,"sheet_cells":100000,"rows_first":2000,"rows_last":500,"rows_between":2000,"halvings":0,"cell_chars":16384,"cell_head_chars":4096},"cells_cut":0,"cells_raw":0,"read":"whole","date_system":"1900"}

{"sheet":"様式第８号（第１面）","index":0,"n_rows":65,"n_cols":25,"rows_kept":65,"cut":false,"hidden":false,"merged":[[0,0,0,24],[3,1,3,24],[4,1,4,24],[5,6,5,8],[8,4,8,20],[9,4,9,20],[56,9,57,12],[14,7,15,8],[14,9,14,10],[14,11,14,12],[15,9,15,10],[15,11,15,12],[12,3,12,4],[12,5,12,12],[12,13,12,16],[13,5,15,6],[13,7,13,12],[13,13,15,14],[13,15,15,16],[15,2,15,3],[31,2,31,3],[15,17,15,18],[15,19,15,20],[31,5,31,6],[31,7,31,8],[32,2,32,4],[12,17,12,24],[28,5,28,8],[13,17,14,20],[13,21,15,22],[13,23,15,24],[29,5,30,8],[22,2,22,4],[23,2,23,4],[24,2,24,4],[25,2,25,4],[26,2,26,4],[28,3,28,4],[16,2,16,4],[17,2,17,4],[18,2,18,4],[19,2,19,4],[20,2,20,4],[21,2,21,4],[39,2,39,4],[40,2,40,4],[41,2,41,4],[42,2,42,4],[45,3,45,4],[45,5,47,8],[33,2,33,4],[34,2,34,4],[35,2,35,4],[36,2,36,4],[37,2,37,4],[38,2,38,4],[45,9,45,12],[45,13,45,16],[45,17,45,20],[55,9,55,12],[46,9,47,10],[46,11,47,12],[46,13,47,14],[46,15,47,16],[46,17,47,18],[46,19,47,20],[49,2,49,4],[49,5,49,6],[49,7,49,8],[50,2,50,4],[50,5,50,6],[50,7,50,8],[47,2,47,3],[58,9,58,10],[58,11,58,12],[48,2,48,4],[48,5,48,6],[48,7,48,8],[53,2,53,4],[53,5,53,8],[55,3,55,4],[55,5,58,8],[58,2,58,3],[59,2,59,4],[59,5,59,6],[59,7,59,8],[51,2,51,4],[51,5,51,6],[51,7,51,8],[52,2,52,4],[52,5,52,6],[52,7,52,8],[64,2,64,4],[64,5,64,8],[62,2,62,4],[62,5,62,6],[62,7,62,8],[63,2,63,4],[63,5,63,6],[63,7,63,8],[60,2,60,4],[60,5,60,6],[60,7,60,8],[61,2,61,4],[61,5,61,6],[61,7,61,8]]}
[]
[null,"様式第８号（第１面）"]
[null,null,null,null,null,null,null,null,null,null,null,null,null,null,null,null,null,null,null,null,null,null,null,null,"（日本産業規格Ａ列４）"]
[null,"有 料 職 業 紹 介 事 業 報 告 書"]
[null,"無 料 職 業 紹 介 事 業 報 告 書"]
[null,1,"許可番号"]
[]
[null,2,"事業所の名称及び所在地"]
[null,null,"（名称）"]
[null,null,"（所在地）"]
[null,3,"紹介予定派遣",null,null,null,null,null,"実績の有無"]
[null,4,"活動状況（国内）"]
[null,null,null,"項目",null,"①　　　求　　　　人",null,null,null,null,null,null,null,"②　　求　　職",null,null,null,"③　　　就　　　　職"]
[null,null,null,null,null,"有　効\n求人数",null,"求　人　数",null,null,null,null,null,"有効求\n職者数",null,"新規求職申込件数",null,"常　　用\n就職件数",null,null,null,"臨　　時\n就職延数",null,"日　　雇\n就職延数"]
[null,null,"取扱",null,null,null,null,"常　用\n求人数",null,"臨時求",null,"日雇求"]
[null,"r1","業務等の区分",null,null,null,null,null,null,"人延数",null,"人延数",null,null,null,null,null,"無期雇用",null,"それ以外"]
[null,null,null,null,null,null,"人",null,"人",null,"人日",null,"人日",null,"人",null,"件",null,"件",null,"件",null,"人日",null,"人日"]
[null,null,null,null,null,null,"人",null,"人",null,"人日",null,"人日",null,"人",null,"件",null,"件",null,"件",null,"人日",null,"人日"]
[null,null,null,null,null,null,"人",null,"人",null,"人日",null,"人日",null,"人",null,"件",null,"件",null,"件",null,"人日",null,"人日"]
[null,null,null,null,null,null,"人",null,"人",null,"人日",null,"人日",null,"人",null,"件",null,"件",null,"件",null,"人日",null,"人日"]
[null,null,null,null,null,null,"人",null,"人",null,"人日",null,"人日",null,"人",null,"件",null,"件",null,"件",null,"人日",null,"人日"]
[null,null,null,null,null,null,"人",null,"人",null,"人日",null,"人日",null,"人",null,"件",null,"件",null,"件",null,"人日",null,"人日"]
[null,null,null,null,null,null,"人",null,"人",null,"人日",null,"人日",null,"人",null,"件",null,"件",null,"件",null,"人日",null,"人日"]
[null,null,null,null,null,null,"人",null,"人",null,"人日",null,"人日",null,"人",null,"件",null,"件",null,"件",null,"人日",null,"人日"]
[null,null,null,null,null,null,"人",null,"人",null,"人日",null,"人日",null,"人",null,"件",null,"件",null,"件",null,"人日",null,"人日"]
[null,null,null,null,null,null,"人",null,"人",null,"人日",null,"人日",null,"人",null,"件",null,"件",null,"件",null,"人日",null,"人日"]
[null,"r2","計",null,null,{"$f":"SUM(F17:F26)-SUMIF($C17:$C26,\"(紹介予定派遣)\",F17:F26)","v":0},"人",{"$f":"SUM(H17:H26)-SUMIF($C17:$C26,\"(紹介予定派遣)\",H17:H26)","v":0},"人",{"$f":"SUM(J17:J26)-SUMIF($C17:$C26,\"(紹介予定派遣)\",J17:J26)","v":0},"人日",{"$f":"SUM(L17:L26)-SUMIF($C17:$C26,\"(紹介予定派遣)\",L17:L26)","v":0},"人日",{"$f":"SUM(N17:N26)-SUMIF($C17:$C26,\"(紹介予定派遣)\",N17:N26)","v":0},"人",{"$f":"SUM(P17:P26)-SUMIF($C17:$C26,\"(紹介予定派遣)\",P17:P26)","v":0},"件",{"$f":"SUM(R17:R26)-SUMIF($C33:$C42,\"(紹介予定派遣)\",R17:R26)","v":0},"件",{"$f":"SUM(T17:T26)-SUMIF($C33:$C42,\"(紹介予定派遣)\",T17:T26)","v":0},"件",{"$f":"SUM(V17:V26)-SUMIF($C33:$C42,\"(紹介予定派遣)\",V17:V26)","v":0},"人日",{"$f":"SUM(X17:X26)-SUMIF($C33:$C42,\"(紹介予定派遣)\",X17:X26)","v":0},"人日"]
[]
[null,null,null,"項目",null,"④　　離　　職"]
[null,null,null,null,null,"無期雇用\n（6ヶ月以内／解雇除く）"]
[null,null,"取扱"]
[null,"r3","業務等の区分",null,null,"離　職",null,"不　明"]
[null,null,null,null,null,null,"人",null,"人"]
[null,null,null,null,null,null,"人",null,"人"]
[null,null,null,null,null,null,"人",null,"人"]
[null,null,null,null,null,null,"人",null,"人"]
[null,null,null,null,null,null,"人",null,"人"]
[null,null,null,null,null,null,"人",null,"人"]
[null,null,null,null,null,null,"人",null,"人"]
[null,null,null,null,null,null,"人",null,"人"]
[null,null,null,null,null,null,"人",null,"人"]
[null,null,null,null,null,null,"人",null,"人"]
[null,"r4","計",null,null,{"$f":"SUM(F33:F42)-SUMIF($C33:$C42,\"(紹介予定派遣)\",F33:F42)","v":0},"人",{"$f":"SUM(H33:H42)-SUMIF($C33:$C42,\"(紹介予定派遣)\",H33:H42)","v":0},"人"]
[]
[null,5,"活動状況（国外）（相手国別・総計）"]
[null,null,null,"項目",null,"相手国",null,null,null,"⑤　求　人",null,null,null,"⑥　　求　　職",null,null,null,"⑦　就　職"]
[null,null,"取扱",null,null,null,null,null,null,"有　効\n求人数",null,"求人数",null,"有効求\n職者数",null,"新規求職\n申込件数",null,"無期雇用\n就職件数",null,"それ以外の\n就職件数"]
[null,"r5","業務等の区分"]
[null,null,null,null,null,null,null,{"$f":"IFERROR(IF(F49=\"\",\"\",VLOOKUP(F49,国コード!B:C,2,FALSE)),\"\")","v":""},null,null,"人",null,"人",null,"人",null,"件",null,"件",null,"件"]
[null,null,null,null,null,null,null,{"$f":"IFERROR(IF(F50=\"\",\"\",VLOOKUP(F50,国コード!B:C,2,FALSE)),\"\")","v":""},null,null,"人",null,"人",null,"人",null,"件",null,"件",null,"件"]
[null,null,null,null,null,null,null,{"$f":"IFERROR(IF(F51=\"\",\"\",VLOOKUP(F51,国コード!B:C,2,FALSE)),\"\")","v":""},null,null,"人",null,"人",null,"人",null,"件",null,"件",null,"件"]
[null,null,null,null,null,null,null,{"$f":"IFERROR(IF(F52=\"\",\"\",VLOOKUP(F52,国コード!B:C,2,FALSE)),\"\")","v":""},null,null,"人",null,"人",null,"人",null,"件",null,"件",null,"件"]
[null,null,null,null,null,null,null,{"$f":"IFERROR(IF(F53=\"\",\"\",VLOOKUP(F53,国コード!B:C,2,FALSE)),\"\")","v":""},null,null,"人",null,"人",null,"人",null,"件",null,"件",null,"件"]
[null,"r6","計",null,null,null,null,null,null,{"$f":"SUM(J49:J53)-SUMIF($C49:$C53,\"(紹介予定派遣)\",J49:J53)","v":0},"人",{"$f":"SUM(L49:L53)-SUMIF($C49:$C53,\"(紹介予定派遣)\",L49:L53)","v":0},"人",{"$f":"SUM(N49:N53)-SUMIF($C49:$C53,\"(紹介予定派遣)\",N49:N53)","v":0},"人",{"$f":"SUM(P49:P53)-SUMIF($C49:$C53,\"(紹介予定派遣)\",P49:P53)","v":0},"件",{"$f":"SUM(R49:R53)-SUMIF($C49:$C53,\"(紹介予定派遣)\",R49:R53)","v":0},"件",{"$f":"SUM(T49:T53)-SUMIF($C49:$C53,\"(紹介予定派遣)\",T49:T53)","v":0},"件"]
[]
[null,null,null,"項目",null,"相手国",null,null,null,"⑧　離　職"]
[null,null,null,null,null,null,null,null,null,"無期雇用\n（6ヶ月以内／解雇除く）"]
[null,null,"取扱"]
[null,null,"業務等の区分",null,null,null,null,null,null,"離　職",null,"不　明"]
[null,null,null,null,null,null,null,{"$f":"IFERROR(IF(F60=\"\",\"\",VLOOKUP(F60,国コード!B:C,2,FALSE)),\"\")","v":""},null,null,"人",null,"人"]
[null,null,null,null,null,null,null,{"$f":"IFERROR(IF(F61=\"\",\"\",VLOOKUP(F61,国コード!B:C,2,FALSE)),\"\")","v":""},null,null,"人",null,"人"]
[null,null,null,null,null,null,null,{"$f":"IFERROR(IF(F62=\"\",\"\",VLOOKUP(F62,国コード!B:C,2,FALSE)),\"\")","v":""},null,null,"人",null,"人"]
[null,null,null,null,null,null,null,{"$f":"IFERROR(IF(F63=\"\",\"\",VLOOKUP(F63,国コード!B:C,2,FALSE)),\"\")","v":""},null,null,"人",null,"人"]
[null,null,null,null,null,null,null,{"$f":"IFERROR(IF(F64=\"\",\"\",VLOOKUP(F64,国コード!B:C,2,FALSE)),\"\")","v":""},null,null,"人",null,"人"]
[null,null,"計",null,null,null,null,null,null,{"$f":"SUM(J60:J64)-SUMIF($C49:$C53,\"(紹介予定派遣)\",J60:J64)","v":0},"人",{"$f":"SUM(L60:L64)-SUMIF($C49:$C53,\"(紹介予定派遣)\",L60:L64)","v":0},"人"]

{"sheet":"様式第８号（第２面）","index":1,"n_rows":45,"n_cols":25,"rows_kept":45,"cut":false,"hidden":false,"merged":[[37,2,37,4],[37,5,37,8],[37,9,37,24],[44,11,44,12],[43,13,44,21],[35,2,35,4],[35,5,35,8],[35,9,35,24],[36,2,36,4],[36,5,36,8],[36,9,36,24],[30,7,31,7],[30,13,31,14],[30,15,30,24],[31,15,31,24],[34,2,34,4],[34,5,34,8],[34,9,34,24],[30,2,31,6],[23,2,23,4],[24,2,24,4],[25,2,25,4],[26,2,26,4],[27,2,27,4],[20,5,20,16],[21,2,21,3],[21,5,21,8],[21,9,21,12],[21,13,21,16],[22,2,22,4],[14,2,14,4],[15,2,15,4],[16,2,16,4],[17,2,17,4],[19,3,19,4],[19,5,19,16],[8,2,8,4],[9,2,9,4],[10,2,10,4],[11,2,11,4],[12,2,12,4],[13,2,13,4],[7,2,7,4],[0,0,0,24],[4,3,4,4],[4,5,4,10],[4,11,6,14],[4,15,4,20],[4,21,6,24],[5,5,5,10],[5,15,5,20],[6,2,6,3],[6,5,6,6],[6,7,6,8],[6,9,6,10],[6,15,6,16],[6,17,6,18],[6,19,6,20]]}
[]
[null,"様式第８号（第２面）"]
[]
[null,6,"収入状況（国内・国外）"]
[null,null,null,"項目",null,"求人者（上限制）手数料",null,null,null,null,null,"求人受付手数料\n（別表）",null,null,null,"求人者（届出制）手数料",null,null,null,null,null,"求職受付手数料"]
[null,null,"取扱",null,null,"（職業安定法第32条の3第1項第1号の規定による手数料）",null,null,null,null,null,null,null,null,null,"（職業安定法第32条の3第１項第2号の規定による手数料）"]
[null,"r7","業務等の区分",null,null,"常用",null,"臨時",null,"日雇",null,null,null,null,null,"常用",null,"臨時",null,"日雇"]
[null,null,null,null,null,null,"千円",null,"千円",null,"千円",null,"件",null,"千円",null,"千円",null,"千円",null,"千円",null,"件",null,"千円"]
[null,null,null,null,null,null,"千円",null,"千円",null,"千円",null,"件",null,"千円",null,"千円",null,"千円",null,"千円",null,"件",null,"千円"]
[null,null,null,null,null,null,"千円",null,"千円",null,"千円",null,"件",null,"千円",null,"千円",null,"千円",null,"千円",null,"件",null,"千円"]
[null,null,null,null,null,null,"千円",null,"千円",null,"千円",null,"件",null,"千円",null,"千円",null,"千円",null,"千円",null,"件",null,"千円"]
[null,null,null,null,null,null,"千円",null,"千円",null,"千円",null,"件",null,"千円",null,"千円",null,"千円",null,"千円",null,"件",null,"千円"]
[null,null,{"$f":"IF('様式第８号（第１面）'!C22=\"\",\"\",'様式第８号（第１面）'!C22)","v":""},null,null,null,"千円",null,"千円",null,"千円",null,"件",null,"千円",null,"千円",null,"千円",null,"千円",null,"件",null,"千円"]
[null,null,{"$f":"IF('様式第８号（第１面）'!C23=\"\",\"\",'様式第８号（第１面）'!C23)","v":""},null,null,null,"千円",null,"千円",null,"千円",null,"件",null,"千円",null,"千円",null,"千円",null,"千円",null,"件",null,"千円"]
[null,null,{"$f":"IF('様式第８号（第１面）'!C24=\"\",\"\",'様式第８号（第１面）'!C24)","v":""},null,null,null,"千円",null,"千円",null,"千円",null,"件",null,"千円",null,"千円",null,"千円",null,"千円",null,"件",null,"千円"]
[null,null,{"$f":"IF('様式第８号（第１面）'!C25=\"\",\"\",'様式第８号（第１面）'!C25)","v":""},null,null,null,"千円",null,"千円",null,"千円",null,"件",null,"千円",null,"千円",null,"千円",null,"千円",null,"件",null,"千円"]
[null,null,{"$f":"IF('様式第８号（第１面）'!C26=\"\",\"\",'様式第８号（第１面）'!C26)","v":""},null,null,null,"千円",null,"千円",null,"千円",null,"件",null,"千円",null,"千円",null,"千円",null,"千円",null,"件",null,"千円"]
[null,"r8","計",null,null,{"$f":"SUM(F8:F17)-SUMIF($C8:$C17,\"(紹介予定派遣)\",F8:F17)","v":0},"千円",{"$f":"SUM(H8:H17)-SUMIF($C8:$C17,\"(紹介予定派遣)\",H8:H17)","v":0},"千円",{"$f":"SUM(J8:J17)-SUMIF($C8:$C17,\"(紹介予定派遣)\",J8:J17)","v":0},"千円",{"$f":"SUM(L8:L17)-SUMIF($C8:$C17,\"(紹介予定派遣)\",L8:L17)","v":0},"件",{"$f":"SUM(N8:N17)-SUMIF($C8:$C17,\"(紹介予定派遣)\",N8:N17)","v":0},"千円",{"$f":"SUM(P8:P17)-SUMIF($C8:$C17,\"(紹介予定派遣)\",P8:P17)","v":0},"千円",{"$f":"SUM(R8:R17)-SUMIF($C8:$C17,\"(紹介予定派遣)\",R8:R17)","v":0},"千円",{"$f":"SUM(T8:T17)-SUMIF($C8:$C17,\"(紹介予定派遣)\",T8:T17)","v":0},"千円",{"$f":"SUM(V8:V17)-SUMIF($C8:$C17,\"(紹介予定派遣)\",V8:V17)","v":0},"件",{"$f":"SUM(X8:X17)-SUMIF($C8:$C17,\"(紹介予定派遣)\",X8:X17)","v":0},"千円"]
[]
[null,null,null,"項目",null,"求職者手数料"]
[null,null,"取扱",null,null,"（職業安定法第32条の3第2項の規定による手数料）"]
[null,null,"業務等の区分",null,null,"常用",null,null,null,"臨時",null,null,null,"日雇"]
[null,null,"芸能家",null,null,null,"件",null,"千円",null,"件",null,"千円",null,"件",null,"千円"]
[null,null,"モデル",null,null,null,"件",null,"千円",null,"件",null,"千円",null,"件",null,"千円"]
[null,null,"科学技術者",null,null,null,"件",null,"千円",null,"件",null,"千円",null,"件",null,"千円"]
[null,null,"経営管理者",null,null,null,"件",null,"千円",null,"件",null,"千円",null,"件",null,"千円"]
[null,null,"熟練技能者",null,null,null,"件",null,"千円",null,"件",null,"千円",null,"件",null,"千円"]
[null,null,"計",null,null,{"$f":"SUM(F23:F27)","v":0},"件",{"$f":"SUM(H23:H27)","v":0},"千円",{"$f":"SUM(J23:J27)","v":0},"件",{"$f":"SUM(L23:L27)","v":0},"千円",{"$f":"SUM(N23:N27)","v":0},"件",{"$f":"SUM(P23:P27)","v":0},"千円"]
[]
[null,7,"職業紹介の業務に従事する者の数",null,null,null,null,null,null,null,null,null,8,"返戻金制度"]
[null,null,null,null,null,null,null,"人",null,null,null,null,null,null,null,"（有の場合、その概要）"]
[]
[]
[null,9,"従業員教育"]
[null,null,"日時",null,null,"従業員数",null,null,null,"教育内容"]
[]
[]
[]
[]
[null,null,"１　職業安定法第32条の16第１項の規定により上記のとおり報告します。"]
[null,null,"２　職業安定法第33条第４項において準用する同法第32条の16第１項の規定により上記のとおり報告します。"]
[]
[null,null,null,null,"令和",null,"年",null,"月",null,"日"]
[]
[null,null,null,"厚生労働大臣　殿",null,null,null,null,null,null,"⑨","氏名又は名称"]

{"sheet":"様式第８号（第３面）","index":2,"n_rows":4,"n_cols":3,"rows_kept":4,"cut":false,"hidden":false,"merged":[[0,0,0,12],[2,1,2,12],[3,2,66,13]]}
["様式第８号（第３面）"]
[]
[null,"記載要領"]
[null,null,"１　職業紹介を行う事業所ごとに別紙で記載することとし、職業紹介事業者を管轄する都道府県\n　　労働局にまとめて提出すること。                                    \n　２　対象期間については、前年の４月１日から３月末日まで（４④欄にあっては前々年の４月１\n　　日から前年の３月末日まで）とすること。\n　３　１には、許可番号を記載すること。\n  ４　３には、対象期間における紹介予定派遣に係る実績の有無を記載すること。\n　５　活動状況（国内）\n   (1)  ４①の「求人数」及び４③欄には、「取扱業務等の区分」ごとに、１箇年における求人及\n　　　び就職数について、「常用」（４③欄にあっては無期雇用」、「それ以外」）、「臨時」、\n　　「日雇」の区分ごとに記載することとし、常用についてはその人（件）数、臨時及び日雇につ\n　　　いてはその延数（人日）を記載すること。３において「有」と記載した場合は「取扱業務等\n　　　の区分」の欄に区分ごとに括弧書きで紹介予定派遣に係る状況を記載すること（以下、(2)\n　　　から(5)まで及び７において同じ。）。\n   (2)  ４①の「有効求人数」、②の「有効求職者数」欄には、それぞれその３月末における有効\n　　　求人数、有効求職者数を記載すること。\n　 (3)　４②の「新規求職申込件数」欄には、「取扱業務等の区分」ごとに対象期間中に新たに求\n　　　職申込みのあった件数を記載すること。\n　 (4)　４④の「離職」欄には、前々年の４月１日から前年の３月末日までの間に就職した者（期\n　　　間の定めのない労働契約を締結した者に限る。以下「無期雇用就職者」という。）のうち、\n　　　就職後６ヶ月以内に離職した者の数を、④の「不明」欄には、無期雇用就職者のうち、就職\n　　　後６ヶ月以内に離職したかどうか明らかでない者の数を記載すること。\n　 (5)　４欄において、「常用」とは、４ヵ月以上の期間を定めて雇用される者又は期間の定めな\n　　　く雇用される者をいい、「臨時」とは、１ヵ月以上４ヵ月未満の期間を定めて雇用される者\n　　　をいい、「日雇」とは、１ヵ月未満の期間を定めて雇用される者をいう。なお、雇用の予定\n　　　期間は、雇用の開始年月日から雇用契約の期間の終了する年月日までの日数とし、雇用の予\n　　　定期間内に休日があっても雇用が継続する場合は、すべて通算するものとすること。ただし、\n　　　断続的な就労の場合は日雇とすること。\n　６　活動状況（国外）\n　 (1)　５⑤の「求人数」及び⑦欄には、「取扱業務等の区分」ごとに、１箇年における求人、期\n　　　間の定めのない労働契約を締結して就職した人（件）数、それ以外の就職人（件）数を記載\n　　　すること。\n   (2)  ５⑤の「有効求人数」及び⑥の「有効求職者数」欄には、それぞれその３月末における有\n　　　効求人数、有効求職数を記載すること。⑥の「新規求職申込件数」欄には、「取扱業務等の\n　　　区分」ごとに対象期間中に新たに求職申込みのあった件数を記載すること。\n　 (3)　５⑧の「離職」欄には、無期雇用就職者のうち、就職後６ヶ月以内に離職した者の数を、\n　　　５⑧の「不明」欄には、無期雇用就職者のうち、就職後６ヶ月以内に離職したかどうか明ら\n　　　かでない者の数を記載すること。\n"]

{"sheet":"様式第８号（第４面）","index":3,"n_rows":68,"n_cols":3,"rows_kept":68,"cut":false,"hidden":false,"merged":[[0,0,0,12],[2,1,2,12],[3,2,66,13]]}
["様式第８号（第４面）"]
[]
[]
[null,null,"　７　６の収入状況には、「常用」、「臨時」、「日雇」の区分及び「取扱業務等の区分」ごとに、対象\n　　期間内における全ての手数料収入について記載すること。\n    　また、芸能家、モデル、科学技術者、経営管理者及び熟練技能者に係る手数料については、求\n　　人者手数料（職業安定法第32条の３第１項第１号及び第２号の規定による手数料）又は求職者手数料（職業安定法\n　　第32条の３第２項の規定による手数料）にそれぞれ別に記載すること。\n　８　⑨欄には、氏名（法人又は団体にあってはその名称及び代表者の氏名）を記名押印又は署名の\n　　いずれかにより記載すること。\n　９　その紹介により就職した者のうち第二種特別加入保険料（労働者災害補償保険法施行規則第46条の18第５号の作\n　　業に従事する者に対する保険料）に充てるべき手数料を徴収した場合は、手数料管理簿の写しを本報告書に添えて\n　　提出すること。\n１０　７の「職業紹介の業務に従事する者の数」欄には、当該職業紹介を行う事業所に係る３月末に\n    おける職業紹介の業務に従事する者の数を記載すること。\n１１　８の「返戻金制度」欄には、返戻金制度（その紹介により就職した者が早期に離職したことその他これに準ずる\n　　理由があった場合に、当該者を紹介した雇用主から徴収すべき手数料の全部又\n　　は一部を返戻する制度その他これに準ずる制度）の有無を記載すること。また、返戻金制度を設けている場合に　　　\n　　は、その概要を記載すること。\n\n\n\n\n\n\n\n\n\n\n\n\n\n\n\n\n\n\n\n\n\n\n\n\n\n\n"]
[]
[]
[]
[]
[]
[]
[]
[]
[]
[]
[]
[]
[]
[]
[]
[]
[]
[]
[]
[]
[]
[]
[]
[]
[]
[]
[]
[]
[]
[]
[]
[]
[]
[]
[]
[]
[]
[]
[]
[]
[]
[]
[]
[]
[]
[]
[]
[]
[]
[]
[]
[]
[]
[]
[]
[]
[]
[]
[]
[]
[]
[]
[]
[null,null,"　"]

{"sheet":"様式第８号（第１・２面）入力案内","index":4,"n_rows":65,"n_cols":52,"rows_kept":65,"cut":false,"hidden":false,"merged":[[37,29,37,31],[37,32,37,35],[37,36,37,51],[43,40,44,48],[44,38,44,39],[35,29,35,31],[35,32,35,35],[35,36,35,51],[36,29,36,31],[36,32,36,35],[36,36,36,51],[30,29,31,33],[30,34,31,34],[30,40,31,41],[30,42,30,51],[31,42,31,51],[34,29,34,31],[34,32,34,35],[34,36,34,51],[22,29,22,31],[23,29,23,31],[24,29,24,31],[25,29,25,31],[26,29,26,31],[27,29,27,31],[19,30,19,31],[19,32,19,43],[20,32,20,43],[21,29,21,30],[21,32,21,35],[21,36,21,39],[21,40,21,43],[12,29,12,31],[13,29,13,31],[14,29,14,31],[15,29,15,31],[16,29,16,31],[17,29,17,31],[6,46,6,47],[7,29,7,31],[8,29,8,31],[9,29,9,31],[10,29,10,31],[11,29,11,31],[6,29,6,30],[6,32,6,33],[6,34,6,35],[6,36,6,37],[6,42,6,43],[6,44,6,45],[64,2,64,4],[64,5,64,8],[0,27,0,51],[4,30,4,31],[4,32,4,37],[4,38,6,41],[4,42,4,47],[4,48,6,51],[5,32,5,37],[5,42,5,47],[62,2,62,4],[62,5,62,6],[62,7,62,8],[63,2,63,4],[63,5,63,6],[63,7,63,8],[60,2,60,4],[60,5,60,6],[60,7,60,8],[61,2,61,4],[61,5,61,6],[61,7,61,8],[55,9,55,12],[56,9,57,12],[58,2,58,3],[58,9,58,10],[58,11,58,12],[59,2,59,4],[59,5,59,6],[59,7,59,8],[52,2,52,4],[52,5,52,6],[52,7,52,8],[53,2,53,4],[53,5,53,8],[55,3,55,4],[55,5,58,8],[50,2,50,4],[50,5,50,6],[50,7,50,8],[51,2,51,4],[51,5,51,6],[51,7,51,8],[48,2,48,4],[48,5,48,6],[48,7,48,8],[49,2,49,4],[49,5,49,6],[49,7,49,8],[45,9,45,12],[45,13,45,16],[45,17,45,20],[46,9,47,10],[46,11,47,12],[46,13,47,14],[46,15,47,16],[46,17,47,18],[46,19,47,20],[39,2,39,4],[40,2,40,4],[41,2,41,4],[42,2,42,4],[45,3,45,4],[45,5,47,8],[47,2,47,3],[33,2,33,4],[34,2,34,4],[35,2,35,4],[36,2,36,4],[37,2,37,4],[38,2,38,4],[28,5,28,8],[29,5,30,8],[31,2,31,3],[31,5,31,6],[31,7,31,8],[32,2,32,4],[22,2,22,4],[23,2,23,4],[24,2,24,4],[25,2,25,4],[26,2,26,4],[28,3,28,4],[19,2,19,4],[20,2,20,4],[21,2,21,4],[13,23,15,24],[14,7,15,8],[14,9,14,10],[14,11,14,12],[15,2,15,3],[15,9,15,10],[15,11,15,12],[15,17,15,18],[15,19,15,20],[13,5,15,6],[13,7,13,12],[13,13,15,14],[13,15,15,16],[13,17,14,20],[13,21,15,22],[16,2,16,4],[17,2,17,4],[18,2,18,4],[0,0,0,24],[3,1,3,24],[4,1,4,24],[5,6,5,8],[8,4,8,20],[9,4,9,20],[12,3,12,4],[12,5,12,12],[12,13,12,16],[12,17,12,24]]}
[]
[null,"様式第８号（第１面）",null,null,null,null,null,null,null,null,null,null,null,null,null,null,null,null,null,null,null,null,null,null,null,null,null,null,"様式第８号（第２面）"]
[null,null,null,null,null,null,null,null,null,null,null,null,null,null,null,null,null,null,null,null,null,null,null,null,"（日本産業規格Ａ列４）"]
[null,"有 料 職 業 紹 介 事 業 報 告 書",null,null,null,null,null,null,null,null,null,null,null,null,null,null,null,null,null,null,null,null,null,null,null,null,null,null,6,"収入状況（国内・国外）"]
[null,"無 料 職 業 紹 介 事 業 報 告 書",null,null,null,null,null,null,null,null,null,null,null,null,null,null,null,null,null,null,null,null,null,null,null,null,null,null,null,null,"項目",null,"求人者（上限制）手数料",null,null,null,null,null,"求人受付手数料\n（別表）",null,null,null,"求人者（届出制）手数料",null,null,null,null,null,"求職受付手数料"]
[null,1,"許可番号",null,null,null,"自由記述",null,null,null,null,null,null,null,null,null,null,null,null,null,null,null,null,null,null,null,null,null,null,"取扱",null,null,"（職業安定法第32条の3第1項第1号の規定による手数料）",null,null,null,null,null,null,null,null,null,"（職業安定法第32条の3第１項第2号の規定による手数料）"]
[null,null,null,null,null,null,null,null,null,null,null,null,null,null,null,null,null,null,null,null,null,null,null,null,null,null,null,null,"r7","業務等の区分",null,null,"常用",null,"臨時",null,"日雇",null,null,null,null,null,"常用",null,"臨時",null,"日雇"]
[null,2,"事業所の名称及び所在地",null,null,null,null,null,null,null,null,null,null,null,null,null,null,null,null,null,null,null,null,null,null,null,null,null,null,{"$f":"IF(C17=\"\",\"\",C17)","v":""},null,null,null,"千円",null,"千円",null,"千円",null,"件",null,"千円",null,"千円",null,"千円",null,"千円",null,"件",null,"千円"]
[null,null,"（名称）",null,"自由記述",null,null,null,null,null,null,null,null,null,null,null,null,null,null,null,null,null,null,null,null,null,null,null,null,{"$f":"IF(C18=\"\",\"\",C18)","v":""},null,null,null,"千円",null,"千円",null,"千円",null,"件",null,"千円",null,"千円",null,"千円",null,"千円",null,"件",null,"千円"]
[null,null,"（所在地）",null,"自由記述",null,null,null,null,null,null,null,null,null,null,null,null,null,null,null,null,null,null,null,null,null,null,null,null,"",null,null,null,"千円",null,"千円",null,"千円",null,"件",null,"千円",null,"千円",null,"千円",null,"千円",null,"件",null,"千円"]
[null,3,"紹介予定派遣",null,null,null,null,null,"実績の有無",null,null,null,null,null,null,null,null,null,null,null,null,null,null,null,null,null,null,null,null,"",null,null,null,"千円",null,"千円",null,"千円",null,"件",null,"千円",null,"千円",null,"千円",null,"千円",null,"件",null,"千円"]
[null,4,"活動状況（国内）",null,null,null,null,null,null,null,null,null,null,null,null,null,null,null,null,null,null,null,null,null,null,null,null,null,null,"",null,null,null,"千円",null,"千円",null,"千円",null,"件",null,"千円",null,"千円",null,"千円",null,"千円",null,"件",null,"千円"]
[null,null,null,"項目",null,"①　　　求　　　　人",null,null,null,null,null,null,null,"②　　求　　職",null,null,null,"③　　　就　　　　職",null,null,null,null,null,null,null,null,null,null,null,"",null,null,null,"千円",null,"千円",null,"千円",null,"件",null,"千円",null,"千円",null,"千円",null,"千円",null,"件",null,"千円"]
[null,null,null,null,null,"有　効\n求人数",null,"求　人　数",null,null,null,null,null,"有効求\n職者数",null,"新規求職申込件数",null,"常　　用\n就職件数",null,null,null,"臨　　時\n就職延数",null,"日　　雇\n就職延数",null,null,null,null,null,"",null,null,null,"千円",null,"千円",null,"千円",null,"件",null,"千円",null,"千円",null,"千円",null,"千円",null,"件",null,"千円"]
[null,null,"取扱",null,null,null,null,"常　用\n求人数",null,"臨時求",null,"日雇求",null,null,null,null,null,null,null,null,null,null,null,null,null,null,null,null,null,"",null,null,null,"千円",null,"千円",null,"千円",null,"件",null,"千円",null,"千円",null,"千円",null,"千円",null,"件",null,"千円"]
[null,"r1","業務等の区分",null,null,null,null,null,null,"人延数",null,"人延数",null,null,null,null,null,"無期雇用",null,"それ以外",null,null,null,null,null,null,null,null,null,"",null,null,null,"千円",null,"千円",null,"千円",null,"件",null,"千円",null,"千円",null,"千円",null,"千円",null,"件",null,"千円"]
[null,null,null,null,null,null,"人",null,"人",null,"人日",null,"人日",null,"人",null,"件",null,"件",null,"件",null,"人日",null,"人日",null,null,null,null,"",null,null,null,"千円",null,"千円",null,"千円",null,"件",null,"千円",null,"千円",null,"千円",null,"千円",null,"件",null,"千円"]
[null,null,null,null,null,null,"人",null,"人",null,"人日",null,"人日",null,"人",null,"件",null,"件",null,"件",null,"人日",null,"人日",null,null,null,"r8","計",null,null,{"$f":"SUM(AG8:AG17)-SUMIF($C8:$C17,\"(紹介予定派遣)\",AG8:AG17)","v":0},"千円",{"$f":"SUM(AI8:AI17)-SUMIF($C8:$C17,\"(紹介予定派遣)\",AI8:AI17)","v":0},"千円",{"$f":"SUM(AK8:AK17)-SUMIF($C8:$C17,\"(紹介予定派遣)\",AK8:AK17)","v":0},"千円",{"$f":"SUM(AM8:AM17)-SUMIF($C8:$C17,\"(紹介予定派遣)\",AM8:AM17)","v":0},"件",{"$f":"SUM(AO8:AO17)-SUMIF($C8:$C17,\"(紹介予定派遣)\",AO8:AO17)","v":0},"千円",{"$f":"SUM(AQ8:AQ17)-SUMIF($C8:$C17,\"(紹介予定派遣)\",AQ8:AQ17)","v":0},"千円",{"$f":"SUM(AS8:AS17)-SUMIF($C8:$C17,\"(紹介予定派遣)\",AS8:AS17)","v":0},"千円",{"$f":"SUM(AU8:AU17)-SUMIF($C8:$C17,\"(紹介予定派遣)\",AU8:AU17)","v":0},"千円",{"$f":"SUM(AW8:AW17)-SUMIF($C8:$C17,\"(紹介予定派遣)\",AW8:AW17)","v":0},"件",{"$f":"SUM(AY8:AY17)-SUMIF($C8:$C17,\"(紹介予定派遣)\",AY8:AY17)","v":0},"千円"]
[null,null,null,null,null,null,"人",null,"人",null,"人日",null,"人日",null,"人",null,"件",null,"件",null,"件",null,"人日",null,"人日"]
[null,null,null,null,null,null,"人",null,"人",null,"人日",null,"人日",null,"人",null,"件",null,"件",null,"件",null,"人日",null,"人日",null,null,null,null,null,"項目",null,"求職者手数料"]
[null,null,null,null,null,null,"人",null,"人",null,"人日",null,"人日",null,"人",null,"件",null,"件",null,"件",null,"人日",null,"人日",null,null,null,null,"取扱",null,null,"（職業安定法第32条の3第2項の規定による手数料）"]
[null,null,null,null,null,null,"人",null,"人",null,"人日",null,"人日",null,"人",null,"件",null,"件",null,"件",null,"人日",null,"人日",null,null,null,null,"業務等の区分",null,null,"常用",null,null,null,"臨時",null,null,null,"日雇"]
[null,null,null,null,null,null,"人",null,"人",null,"人日",null,"人日",null,"人",null,"件",null,"件",null,"件",null,"人日",null,"人日",null,null,null,null,"芸能家",null,null,null,"件",null,"千円",null,"件",null,"千円",null,"件",null,"千円"]
[null,null,null,null,null,null,"人",null,"人",null,"人日",null,"人日",null,"人",null,"件",null,"件",null,"件",null,"人日",null,"人日",null,null,null,null,"モデル",null,null,null,"件",null,"千円",null,"件",null,"千円",null,"件",null,"千円"]
[null,null,null,null,null,null,"人",null,"人",null,"人日",null,"人日",null,"人",null,"件",null,"件",null,"件",null,"人日",null,"人日",null,null,null,null,"科学技術者",null,null,null,"件",null,"千円",null,"件",null,"千円",null,"件",null,"千円"]
[null,null,null,null,null,null,"人",null,"人",null,"人日",null,"人日",null,"人",null,"件",null,"件",null,"件",null,"人日",null,"人日",null,null,null,null,"経営管理者",null,null,null,"件",null,"千円",null,"件",null,"千円",null,"件",null,"千円"]
[null,"r2","計",null,null,{"$f":"SUM(F17:F26)-SUMIF($C17:$C26,\"(紹介予定派遣)\",F17:F26)","v":0},"人",{"$f":"SUM(H17:H26)-SUMIF($C17:$C26,\"(紹介予定派遣)\",H17:H26)","v":0},"人",{"$f":"SUM(J17:J26)-SUMIF($C17:$C26,\"(紹介予定派遣)\",J17:J26)","v":0},"人日",{"$f":"SUM(L17:L26)-SUMIF($C17:$C26,\"(紹介予定派遣)\",L17:L26)","v":0},"人日",{"$f":"SUM(N17:N26)-SUMIF($C17:$C26,\"(紹介予定派遣)\",N17:N26)","v":0},"人",{"$f":"SUM(P17:P26)-SUMIF($C17:$C26,\"(紹介予定派遣)\",P17:P26)","v":0},"件",{"$f":"SUM(R17:R26)-SUMIF($C33:$C42,\"(紹介予定派遣)\",R17:R26)","v":0},"件",{"$f":"SUM(T17:T26)-SUMIF($C33:$C42,\"(紹介予定派遣)\",T17:T26)","v":0},"件",{"$f":"SUM(V17:V26)-SUMIF($C33:$C42,\"(紹介予定派遣)\",V17:V26)","v":0},"人日",{"$f":"SUM(X17:X26)-SUMIF($C33:$C42,\"(紹介予定派遣)\",X17:X26)","v":0},"人日",null,null,null,null,"熟練技能者",null,null,null,"件",null,"千円",null,"件",null,"千円",null,"件",null,"千円"]
[null,null,null,null,null,null,null,null,null,null,null,null,null,null,null,null,null,null,null,null,null,null,null,null,null,null,null,null,null,"計",null,null,{"$f":"SUM(AG23:AG27)","v":0},"件",{"$f":"SUM(AI23:AI27)","v":0},"千円",{"$f":"SUM(AK23:AK27)","v":0},"件",{"$f":"SUM(AM23:AM27)","v":0},"千円",{"$f":"SUM(AO23:AO27)","v":0},"件",{"$f":"SUM(AQ23:AQ27)","v":0},"千円"]
[null,null,null,"項目",null,"④　　離　　職"]
[null,null,null,null,null,"無期雇用\n（6ヶ月以内／解雇除く）",null,null,null,null,null,null,null,null,null,null,null,null,null,null,null,null,null,null,null,null,null,null,7,"職業紹介の業務に従事する者の数",null,null,null,null,null,null,null,null,null,8,"返戻金制度"]
[null,null,"取扱",null,null,null,null,null,null,null,null,null,null,null,null,null,null,null,null,null,null,null,null,null,null,null,null,null,null,"自由記述",null,null,null,null,"人",null,null,null,null,null,null,null,"（有の場合、その概要）"]
[null,"r3","業務等の区分",null,null,"離　職",null,"不　明",null,null,null,null,null,null,null,null,null,null,null,null,null,null,null,null,null,null,null,null,null,null,null,null,null,null,null,null,null,null,null,null,null,null,"自由記述"]
[null,null,null,null,null,null,"人",null,"人"]
[null,null,null,null,null,null,"人",null,"人",null,null,null,null,null,null,null,null,null,null,null,null,null,null,null,null,null,null,null,9,"従業員教育"]
[null,null,null,null,null,null,"人",null,"人",null,null,null,null,null,null,null,null,null,null,null,null,null,null,null,null,null,null,null,null,"日時",null,null,"従業員数",null,null,null,"教育内容"]
[null,null,null,null,null,null,"人",null,"人"]
[null,null,null,null,null,null,"人",null,"人",null,null,null,null,null,null,null,null,null,null,null,null,null,null,null,null,null,null,null,null,"自由記述",null,null,"自由記述",null,null,null,"自由記述"]
[null,null,null,null,null,null,"人",null,"人"]
[null,null,null,null,null,null,"人",null,"人"]
[null,null,null,null,null,null,"人",null,"人",null,null,null,null,null,null,null,null,null,null,null,null,null,null,null,null,null,null,null,null,"１　職業安定法第32条の16第１項の規定により上記のとおり報告します。"]
[null,null,null,null,null,null,"人",null,"人",null,null,null,null,null,null,null,null,null,null,null,null,null,null,null,null,null,null,null,null,"２　職業安定法第33条第４項において準用する同法第32条の16第１項の規定により上記のとおり報告します。"]
[null,null,null,null,null,null,"人",null,"人"]
[null,"r4","計",null,null,{"$f":"SUM(F33:F42)-SUMIF($C33:$C42,\"(紹介予定派遣)\",F33:F42)","v":0},"人",{"$f":"SUM(H33:H42)-SUMIF($C33:$C42,\"(紹介予定派遣)\",H33:H42)","v":0},"人",null,null,null,null,null,null,null,null,null,null,null,null,null,null,null,null,null,null,null,null,null,null,"令和","自由記述","年","自由記述","月","自由記述","日"]
[null,null,null,null,null,null,null,null,null,null,null,null,null,null,null,null,null,null,null,null,null,null,null,null,null,null,null,null,null,null,null,null,null,null,null,null,null,null,null,null,"自由記述"]
[null,5,"活動状況（国外）（相手国別・総計）",null,null,null,null,null,null,null,null,null,null,null,null,null,null,null,null,null,null,null,null,null,null,null,null,null,null,null,"厚生労働大臣　殿",null,null,null,null,null,null,"⑨","氏名又は名称"]
[null,null,null,"項目",null,"相手国",null,null,null,"⑤　求　人",null,null,null,"⑥　　求　　職",null,null,null,"⑦　就　職"]
[null,null,"取扱",null,null,null,null,null,null,"有　効\n求人数",null,"求人数",null,"有効求\n職者数",null,"新規求職\n申込件数",null,"無期雇用\n就職件数",null,"それ以外の\n就職件数"]
[null,"r5","業務等の区分"]
[null,null,null,null,null,null,null,null,null,null,"人",null,"人",null,"人",null,"件",null,"件",null,"件"]
[null,null,null,null,null,null,null,null,null,null,"人",null,"人",null,"人",null,"件",null,"件",null,"件"]
[null,null,null,null,null,null,null,"自動反映",null,null,"人",null,"人",null,"人",null,"件",null,"件",null,"件"]
[null,null,null,null,null,null,null,null,null,null,"人",null,"人",null,"人",null,"件",null,"件",null,"件"]
[null,null,null,null,null,null,null,null,null,null,"人",null,"人",null,"人",null,"件",null,"件",null,"件"]
[null,"r6","計",null,null,null,null,null,null,{"$f":"SUM(J49:J53)-SUMIF($C49:$C53,\"(紹介予定派遣)\",J49:J53)","v":0},"人",{"$f":"SUM(L49:L53)-SUMIF($C49:$C53,\"(紹介予定派遣)\",L49:L53)","v":0},"人",{"$f":"SUM(N49:N53)-SUMIF($C49:$C53,\"(紹介予定派遣)\",N49:N53)","v":0},"人",{"$f":"SUM(P49:P53)-SUMIF($C49:$C53,\"(紹介予定派遣)\",P49:P53)","v":0},"件",{"$f":"SUM(R49:R53)-SUMIF($C49:$C53,\"(紹介予定派遣)\",R49:R53)","v":0},"件",{"$f":"SUM(T49:T53)-SUMIF($C49:$C53,\"(紹介予定派遣)\",T49:T53)","v":0},"件"]
[]
[null,null,null,"項目",null,"相手国",null,null,null,"⑧　離　職"]
[null,null,null,null,null,null,null,null,null,"無期雇用\n（6ヶ月以内／解雇除く）"]
[null,null,"取扱"]
[null,null,"業務等の区分",null,null,null,null,null,null,"離　職",null,"不　明"]
[null,null,null,null,null,null,null,null,null,null,"人",null,"人"]
[null,null,null,null,null,null,null,null,null,null,"人",null,"人"]
[null,null,null,null,null,null,null,"自動反映",null,null,"人",null,"人"]
[null,null,null,null,null,null,null,null,null,null,"人",null,"人"]
[null,null,null,null,null,null,null,null,null,null,"人",null,"人"]
[null,null,"計",null,null,null,null,null,null,{"$f":"SUM(J60:J64)-SUMIF($C49:$C53,\"(紹介予定派遣)\",J60:J64)","v":0},"人",{"$f":"SUM(L60:L64)-SUMIF($C49:$C53,\"(紹介予定派遣)\",L60:L64)","v":0},"人"]

{"sheet":"職種コード","index":5,"n_rows":112,"n_cols":5,"rows_kept":112,"cut":false,"hidden":false,"merged":[]}
[]
[null,"新職種コード",null,null,"旧職種コード"]
[null,"職種の区分","留意事項・主な職業例",null,"職種の区分"]
[null,"a 家政婦（夫）","家政婦（夫）を052とは分けて区分",null,"001 芸能家"]
[null,"b マネキン","マネキンを045とは分けて区分",null,"002 家政婦（夫）"]
[null,"c 調理師",null,null,"003 配ぜん人"]
[null,"d 芸能家",null,null,"004 調理師"]
[null,"e 配ぜん人","配ぜん人を056とは分けて区分",null,"005 モデル"]
[null,"f モデル",null,null,"006 マネキン"]
[null,"g 医師","医師を021とは分けて区分",null,"007 技能実習生"]
[null,"h 保育士","保育士を029とは分けて区分",null,"008 医師"]
[null,"i 特定技能の在留資格に係る職業紹介","特定技能の在留資格者、他の在留資格から特定技能の在留資格を取得した者及び特定技能の在留資格により就労を希望している者",null,"009 看護師"]
[null,"001 法人・団体役員",null,null,"010 保育士"]
[null,"002 法人・団体管理職員","工場・支店・営業所等の長",null,"011 特定技能の在留資格にかかる職業紹介"]
[null,"003 その他の管理的職業","部課長",null,"01 管理的公務員"]
[null,"004 研究者",null,null,"02 法人・団体の役員"]
[null,"005 農林水産技術者",null,null,"03 法人・団体の管理職員"]
[null,"006 開発技術者","各種開発技術者",null,"04 その他の管理的職業"]
[null,"007 製造技術者",null,null,"05 研究者"]
[null,"008 建築・土木・測量技術者","建築設計士、測量士",null,"06 農林水産技術者"]
[null,"009 情報処理・通信技術者（ソフトウェア開発）","ソフトウェア開発技術者、プログラマー",null,"07 開発技術者"]
[null,"010 情報処理・通信技術者（ソフトウェア開発を除く）","ITコンサルタント、ITシステム設計技術者",null,"08 製造技術者"]
[null,"011 その他の技術の職業",null,null,"09 建築・土木・測量技術者"]
[null,"012 法務の職業","裁判官、弁護士、弁理士、司法書士",null,"10 情報処理・通信技術者"]
[null,"013 経営・金融・保険の専門的職業","公認会計士、税理士、社会保険労務士",null,"11 その他の技術者"]
[null,"014 宗教家","神職、僧侶",null,"12 医師、歯科医師、獣医師、薬剤師"]
[null,"015 著述家、記者、編集者","著述家、翻訳家、記者",null,"13 保健師、助産師、看護師"]
[null,"016 美術家、写真家、映像撮影者","イラストレーター、映像撮影者",null,"14 医療技術者"]
[null,"017 デザイナー","ウェブデザイナー、グラフィックデザーナー",null,"15 その他の保健医療の職業"]
[null,"018 音楽家、舞台芸術家","番組制作者、アシスタントディレクター",null,"16 社会福祉の専門的職業"]
[null,"019 図書館司書、学芸員、カウンセラー（医療・福祉施設を除く）",null,null,"17 法務の職業"]
[null,"020 その他の法務・経営・文化芸術等の専門的職業","職業スポーツ家、通訳",null,"18 経営・金融・保険の専門的職業"]
[null,"021 医師、歯科医師、獣医師、薬剤師","歯科医師、獣医師、薬剤師",null,"19 教育の職業"]
[null,"022 保健師、助産師",null,null,"20 宗教家"]
[null,"023 看護師、准看護師",null,null,"21 著述家、記者、編集者"]
[null,"024 医療技術者","診療放射線技師、歯科衛生士",null,"22 美術家、デザイナー、写真家、映像撮影者"]
[null,"025 栄養士・管理栄養士",null,null,"23 音楽家、舞台芸術家"]
[null,"026 あん摩マッサージ指圧師、はり師、きゅう師、柔道整復師",null,null,"24 その他の専門的職業"]
[null,"027 その他の医療・看護・保健の専門的職業","環境衛生監視員、心理カウンセラー",null,"25 一般事務の職業"]
[null,"028 保健医療関係助手","看護助手、歯科助手",null,"26 会計事務の職業"]
[null,"029 保育士・幼稚園教員",null,null,"27 生産関連事務の職業"]
[null,"030 学童保育等指導員、保育補助者、家庭的保育者",null,null,"28 営業・販売関連事務の職業"]
[null,"031 学校等教員","高等専門学校教員、大学教員",null,"29 外勤事務の職業"]
[null,"032 習い事指導等教育関連の職業","学習・語学指導等教師、スポーツ・舞踏指導員",null,"30 運輸・郵便事務の職業"]
[null,"033 総務・人事・企画事務の職業",null,null,"31 事務用機器操作の職業"]
[null,"034 一般事務・秘書・受付の職業",null,null,"32 商品販売の職業"]
[null,"035 その他の総務等事務の職業","法務・広報・知的財産事務の職業",null,"33 販売類似の職業"]
[null,"036 電話・インターネットによる応接事務の職業","コールセンターオペレーター",null,"34 営業の職業"]
[null,"037 医療・介護事務の職業",null,null,"35 家庭生活支援サービスの職業"]
[null,"038 会計事務の職業","現金出納事務員、預・貯金窓口事務員",null,"36 介護サービスの職業"]
[null,"039 生産関連事務の職業","生産現場事務員、出荷・受荷係事務員",null,"37 保健医療サービスの職業"]
[null,"040 営業・販売関連事務の職業","貿易事務員",null,"38 生活衛生サービスの職業"]
[null,"041 外勤事務の職業","集金人、調査員",null,"39 飲食物調理の職業"]
[null,"042 運輸・郵便事務の職業","旅客・貨物係事務員、運行管理事務員",null,"40 接客・給仕の職業"]
[null,"043 コンピュータ等事務用機器操作の職業","データ入力事務員",null,"41 居住施設・ビル等の管理の職業"]
[null,"044 小売店・卸売店店長",null,null,"42 その他のサービスの職業"]
[null,"045 販売員","レジ係、百貨店販売店員",null,"43 自衛官"]
[null,"046 商品仕入・再生資源卸売の職業",null,null,"44 司法警察職員"]
[null,"047 販売類似の職業","不動産仲介・売買人、保健代理人",null,"45 その他の保安の職業"]
[null,"048 営業の職業",null,null,"46 農業の職業"]
[null,"049 福祉・介護の専門的職業","障害者福祉施設指導専門員",null,"47 林業の職業"]
[null,"050 施設介護の職業","障害者福祉施設介護員",null,"48 漁業の職業"]
[null,"051 訪問介護の職業","訪問入浴介助員",null,"49 生産設備制御・監視の職業（金属材料製造、金属加工、金属溶接・溶断）"]
[null,"052 家庭生活支援サービスの職業","家事手伝い",null,"50 生産設備制御・監視の職業（金属材料製造、金属加工、金属溶接・溶断を除く）"]
[null,"053 理容師、美容師、美容関連サービスの職業","エステティシャン、ネイリスト",null,"51 生産設備制御・監視の職業（機械組立）"]
[null,"054 浴場・クリーニングの職業",null,null,"52 金属材料製造、金属加工、金属溶接・溶断の職業"]
[null,"055 飲食物調理の職業","学校給食調理員、バーテンダー",null,"54 製品製造・加工処理の職業（金属材料製造、金属加工、金属溶接・溶断を除く）"]
[null,"056 接客・給仕の職業","飲食店店長、旅館・ホテル支配人",null,"57 機械組立の職業"]
[null,"057 居住施設・ビル等の管理の職業","駐車場・駐輪場管理人",null,"60 機械整備・修理の職業"]
[null,"058 その他のサービスの職業","添乗員、観光案内人、広告宣伝員",null,"61 製品検査の職業（金属材料製造、金属加工、金属溶接・溶断）"]
[null,"059 警備員","道路交通誘導員",null,"62 製品検査の職業（金属材料製造、金属加工、金属溶接・溶断を除く）"]
[null,"060 自衛官",null,null,"63 機械検査の職業"]
[null,"061 司法警察職員","警察官、海上保安官",null,"64 生産関連・生産類似の職業"]
[null,"062 看守、消防員",null,null,"65 鉄道運転の職業"]
[null,"063 その他の保安の職業","海水浴場監視員、ガス設備保安点検員",null,"66 自動車運転の職業"]
[null,"064 農業の職業（養畜・動物飼育・植木・造園を含む）",null,null,"67 船舶・航空機運転の職業"]
[null,"065 林業の職業",null,null,"68 その他の輸送の職業"]
[null,"066 漁業の職業","漁労船の船長・航海士・機関長・機関士",null,"69 定置・建設機械運転の職業"]
[null,"067 生産設備オペレーター（金属製品）",null,null,"70 建設躯体工事の職業"]
[null,"068 生産設備オペレーター（食料品等）","飲料・たばこ生産設備オペレーター",null,"71 建設の職業（建設躯体工事の職業を除く）"]
[null,"069 生産設備オペレーター（金属製品・食料品等を除く）","化学製品・窯業・土石・繊維製品・木製品・印刷・製本・ゴム・プラスチック製品等生産設備オペレーター",null,"72 電気工事の職業"]
[null,"070 機械組立設備オペレーター","はん用・生産用・電気機械器具・自動車等組立設備オペレーター",null,"73 土木の職業"]
[null,"071 製品製造・加工処理工（金属製品）","製銑工、製鋼工、非鉄金属洗練工、鋳物製造工、金属熱処理工",null,"74 採掘の職業"]
[null,"072 製品製造・加工処理工（食料品等）",null,null,"75 運搬の職業"]
[null,"073 製品製造・加工処理工（金属製品・食料品等を除く）","化学製造・衣服・繊維製品・紙製品・ゴム製品・プラスチック製品等製造工、印刷・製本作業員",null,"76 清掃の職業"]
[null,"074 機械組立工","電気機械・光学機械器具等組立工",null,"77 包装の職業"]
[null,"075 機械整備・修理工",null,null,"78 その他の運搬・清掃・包装等の職業"]
[null,"076 製品検査工（金属製品）","金属材料検査工、金属加工・溶接検査工",null,"(紹介予定派遣)"]
[null,"077 製品検査工（食料品等）","食料品検査工"]
[null,"078 製品検査工（金属製品・食料品等を除く）","化学製品・衣服・繊維製品・紙製品・印刷・製本・ゴム・プラスチック等検査工"]
[null,"079 機械検査工","電気機械器具・光学機械器具等検査工"]
[null,"080 生産関連の職業（塗装・製図を含む）","建築塗装工、画工、看板製作工"]
[null,"081 生産類似の職業","映写技師、音響係"]
[null,"082 配送・集荷の職業","郵便集配員、電報配達員、新聞配達員"]
[null,"083 貨物自動車運転の職業","大型トラック運転手"]
[null,"084 バス運転の職業"]
[null,"085 乗用車運転の職業","タクシー・ハイヤー運転手"]
[null,"086 その他の自動車運転の職業","レッカー運転手"]
[null,"087 鉄道・船舶・航空機運転の職業","鉄道運転士、船長・航海士・運航士（漁労船を除く）、水先人"]
[null,"088 その他の輸送の職業","車掌、フォークリフト運転作業員"]
[null,"089 施設機械設備操作・建設機械運転の職業","ビル設備管理員、クレーン・巻上機運転工"]
[null,"090 建設躯体工事の職業","とび工、解体工"]
[null,"091 建設の職業（建設躯体工事の職業を除く）","大工、屋根ふき工、左官、配管工"]
[null,"092 土木の職業"]
[null,"093 採掘の職業"]
[null,"094 電気・通信工事の職業","送電線架線・敷設作業員"]
[null,"095 荷役・運搬作業員","港湾荷役作業員、梱包作業員"]
[null,"096 清掃・洗浄作業員"]
[null,"097 包装作業員"]
[null,"098 選別・ピッキング作業員","商品仕分け作業員"]
[null,"099 その他の運搬・清掃・包装・選別等の職業","工場業務員、小売店品出し・陳列・補充作業員"]
[null,"(紹介予定派遣)"]

{"sheet":"国コード","index":6,"n_rows":248,"n_cols":3,"rows_kept":248,"cut":false,"hidden":true,"merged":[[1,1,1,2]]}
[]
[null,"「相手国コード」"]
[null,"国名","国コード(英字半角)"]
["ベトナム","アルバ","ABW"]
["中華人民共和国","アフガニスタン","AFG"]
["インドネシア","アンゴラ","AGO"]
["シンガポール","アンギラ","AIA"]
["台湾（台湾省/中華民国）","オーランド諸島","ALA"]
["タイ","アルバニア","ALB"]
["大韓民国","アンドラ","AND"]
["アメリカ合衆国","オランダ領アンティル","ANT"]
["香港","アラブ首長国連邦","ARE"]
["インド","アルゼンチン","ARG"]
["カナダ","アルメニア","ARM"]
["フィリピン","アメリカ領サモア","ASM"]
["イギリス","南極","ATA"]
["ミャンマー","フランス領南方・南極地域","ATF"]
["オーストラリア","アンティグア・バーブーダ","ATG"]
["メキシコ","オーストラリア","AUS"]
["マレーシア","オーストリア","AUT"]
["ネパール","アゼルバイジャン","AZE"]
["モンゴル","ブルンジ","BDI"]
["ブラジル","ベルギー","BEL"]
[null,"ベナン","BEN"]
[null,"ブルキナファソ","BFA"]
[null,"バングラデシュ","BGD"]
[null,"ブルガリア","BGR"]
[null,"バーレーン","BHR"]
[null,"バハマ","BHS"]
[null,"ボスニア・ヘルツェゴビナ","BIH"]
[null,"ベラルーシ","BLR"]
[null,"ベリーズ","BLZ"]
[null,"バミューダ諸島","BMU"]
[null,"ボリビア","BOL"]
[null,"ブラジル","BRA"]
[null,"バルバドス","BRB"]
[null,"ブルネイ","BRN"]
[null,"ブータン","BTN"]
[null,"ブーベ島","BVT"]
[null,"ボツワナ","BWA"]
[null,"中央アフリカ","CAF"]
[null,"カナダ","CAN"]
[null,"ココス諸島","CCK"]
[null,"スイス","CHE"]
[null,"チリ","CHL"]
[null,"中華人民共和国","CHN"]
[null,"コートジボワール","CIV"]
[null,"カメルーン","CMR"]
[null,"コンゴ民主共和国","COD"]
[null,"コンゴ共和国","COG"]
[null,"クック諸島","COK"]
[null,"コロンビア","COL"]
[null,"コモロ","COM"]
[null,"カーボベルデ","CPV"]
[null,"コスタリカ","CRI"]
[null,"キューバ","CUB"]
[null,"クリスマス島","CXR"]
[null,"ケイマン諸島","CYM"]
[null,"キプロス","CYP"]
[null,"チェコ","CZE"]
[null,"ドイツ","DEU"]
[null,"ジブチ","DJI"]
[null,"ドミニカ国","DMA"]
[null,"デンマーク","DNK"]
[null,"ドミニカ共和国","DOM"]
[null,"アルジェリア","DZA"]
[null,"エクアドル","ECU"]
[null,"エジプト","EGY"]
[null,"エリトリア","ERI"]
[null,"西サハラ","ESH"]
[null,"スペイン","ESP"]
[null,"エストニア","EST"]
[null,"エチオピア","ETH"]
[null,"フィンランド","FIN"]
[null,"フィジー","FJI"]
[null,"フォークランド諸島","FLK"]
[null,"フランス","FRA"]
[null,"フェロー諸島","FRO"]
[null,"ミクロネシア連邦","FSM"]
[null,"ガボン","GAB"]
[null,"イギリス","GBR"]
[null,"グルジア","GEO"]
[null,"ガーンジー","GGY"]
[null,"ガーナ","GHA"]
[null,"ジブラルタル","GIB"]
[null,"ギニア","GIN"]
[null,"グアドループ","GLP"]
[null,"ガンビア","GMB"]
[null,"ギニアビサウ","GNB"]
[null,"赤道ギニア","GNQ"]
[null,"ギリシャ","GRC"]
[null,"グレナダ","GRD"]
[null,"グリーンランド","GRL"]
[null,"グアテマラ","GTM"]
[null,"フランス領ギアナ","GUF"]
[null,"グアム","GUM"]
[null,"ガイアナ","GUY"]
[null,"香港","HKG"]
[null,"ハード島とマクドナルド諸島","HMD"]
[null,"ホンジュラス","HND"]
[null,"クロアチア","HRV"]
[null,"ハイチ","HTI"]
[null,"ハンガリー","HUN"]
[null,"インドネシア","IDN"]
[null,"マン島","IMN"]
[null,"インド","IND"]
[null,"イギリス領インド洋地域","IOT"]
[null,"アイルランド","IRL"]
[null,"イラン","IRN"]
[null,"イラク","IRQ"]
[null,"アイスランド","ISL"]
[null,"イスラエル","ISR"]
[null,"イタリア","ITA"]
[null,"ジャマイカ","JAM"]
[null,"ジャージー","JEY"]
[null,"ヨルダン","JOR"]
[null,"日本","JPN"]
[null,"カザフスタン","KAZ"]
[null,"ケニア","KEN"]
[null,"キルギス","KGZ"]
[null,"カンボジア","KHM"]
[null,"キリバス","KIR"]
[null,"セントクリストファー・ネイビス","KNA"]
[null,"大韓民国","KOR"]
[null,"クウェート","KWT"]
[null,"ラオス","LAO"]
[null,"レバノン","LBN"]
[null,"リベリア","LBR"]
[null,"リビア","LBY"]
[null,"セントルシア","LCA"]
[null,"リヒテンシュタイン","LIE"]
[null,"スリランカ","LKA"]
[null,"レソト","LSO"]
[null,"リトアニア","LTU"]
[null,"ルクセンブルク","LUX"]
[null,"ラトビア","LVA"]
[null,"マカオ","MAC"]
[null,"モロッコ","MAR"]
[null,"モナコ","MCO"]
[null,"モルドバ","MDA"]
[null,"マダガスカル","MDG"]
[null,"モルディブ","MDV"]
[null,"メキシコ","MEX"]
[null,"マーシャル諸島","MHL"]
[null,"マケドニア共和国","MKD"]
[null,"マリ","MLI"]
[null,"マルタ","MLT"]
[null,"ミャンマー","MMR"]
[null,"モンテネグロ","MNE"]
[null,"モンゴル","MNG"]
[null,"北マリアナ諸島","MNP"]
[null,"モザンビーク","MOZ"]
[null,"モーリタニア","MRT"]
[null,"モントセラト","MSR"]
[null,"マルティニーク","MTQ"]
[null,"モーリシャス","MUS"]
[null,"マラウイ","MWI"]
[null,"マレーシア","MYS"]
[null,"マヨット","MYT"]
[null,"ナミビア","NAM"]
[null,"ニューカレドニア","NCL"]
[null,"ニジェール","NER"]
[null,"ノーフォーク島","NFK"]
[null,"ナイジェリア","NGA"]
[null,"ニカラグア","NIC"]
[null,"ニウエ","NIU"]
[null,"オランダ","NLD"]
[null,"ノルウェー","NOR"]
[null,"ネパール","NPL"]
[null,"ナウル","NRU"]
[null,"ニュージーランド","NZL"]
[null,"オマーン","OMN"]
[null,"パキスタン","PAK"]
[null,"パナマ","PAN"]
[null,"ピトケアン","PCN"]
[null,"ペルー","PER"]
[null,"フィリピン","PHL"]
[null,"パラオ","PLW"]
[null,"パプアニューギニア","PNG"]
[null,"ポーランド","POL"]
[null,"プエルトリコ","PRI"]
[null,"朝鮮民主主義人民共和国","PRK"]
[null,"ポルトガル","PRT"]
[null,"パラグアイ","PRY"]
[null,"パレスチナ","PSE"]
[null,"フランス領ポリネシア","PYF"]
[null,"カタール","QAT"]
[null,"レユニオン","REU"]
[null,"ルーマニア","ROU"]
[null,"ロシア","RUS"]
[null,"ルワンダ","RWA"]
[null,"サウジアラビア","SAU"]
[null,"スーダン","SDN"]
[null,"セネガル","SEN"]
[null,"シンガポール","SGP"]
[null,"サウスジョージア・サウスサンドウィッチ諸島","SGS"]
[null,"セントヘレナ・アセンションおよびトリスタン・ダ・クーニャ","SHN"]
[null,"スヴァールバル諸島およびヤンマイエン島","SJM"]
[null,"ソロモン諸島","SLB"]
[null,"シエラレオネ","SLE"]
[null,"エルサルバドル","SLV"]
[null,"サンマリノ","SMR"]
[null,"ソマリア","SOM"]
[null,"サンピエール島・ミクロン島","SPM"]
[null,"セルビア","SRB"]
[null,"サントメ・プリンシペ","STP"]
[null,"スリナム","SUR"]
[null,"スロバキア","SVK"]
[null,"スロベニア","SVN"]
[null,"スウェーデン","SWE"]
[null,"スワジランド","SWZ"]
[null,"セーシェル","SYC"]
[null,"シリア","SYR"]
[null,"タークス・カイコス諸島","TCA"]
[null,"チャド","TCD"]
[null,"トーゴ","TGO"]
[null,"タイ","THA"]
[null,"タジキスタン","TJK"]
[null,"トケラウ","TKL"]
[null,"トルクメニスタン","TKM"]
[null,"東ティモール","TLS"]
[null,"トンガ","TON"]
[null,"トリニダード・トバゴ","TTO"]
[null,"チュニジア","TUN"]
[null,"トルコ","TUR"]
[null,"ツバル","TUV"]
[null,"台湾（台湾省/中華民国）","TWN"]
[null,"タンザニア","TZA"]
[null,"ウガンダ","UGA"]
[null,"ウクライナ","UKR"]
[null,"合衆国領有小離島","UMI"]
[null,"ウルグアイ","URY"]
[null,"アメリカ合衆国","USA"]
[null,"ウズベキスタン","UZB"]
[null,"バチカン","VAT"]
[null,"セントビンセント・グレナディーン","VCT"]
[null,"ベネズエラ","VEN"]
[null,"イギリス領ヴァージン諸島","VGB"]
[null,"アメリカ領ヴァージン諸島","VIR"]
[null,"ベトナム","VNM"]
[null,"バヌアツ","VUT"]
[null,"ウォリス・フツナ","WLF"]
[null,"サモア","WSM"]
[null,"イエメン","YEM"]
[null,"南アフリカ","ZAF"]
[null,"ザンビア","ZMB"]
[null,"ジンバブエ","ZWE"]
[null,"その他",999]